[Event "Chinese League Div-A Rapid 2022"]
[Site "Fuling,Chongqing"]
[Date "2022.09.10"]
[Round "4.30"]
[White "Guo, Qi"]
[Black "Li, Xueyi"]
[Result "1-0"]
[ECO "D46"]
[WhiteElo "2406"]
[BlackElo "2280"]
[Annotator "TA"]
[PlyCount "167"]
[EventDate "2022.09.07"]
[EventType "team-tourn"]
[EventCountry "CHN"]
[SourceTitle "playchess.com"]
[Source "ChessBase"]
[SourceQuality "1"]
[TimeControl "1500+10"]

{[%evp 19,167,11,32,7,25,29,24,27,27,32,36,31,62,0,0,0,59,0,0,-62,-25,-37,0,0,0,0,0,-8,0,0,80,73,148,-10,91,-7,0,0,42,47,79,86,84,79,85,79,79,79,79,79,79,69,69,60,79,35,39,31,33,12,13,20,92,92,109,116,108,92,92,92,202,197,188,187,173,173,170,151,368,368,368,368,368,368,361,361,361,361,354,354,346,332,328,320,376,372,367,339,369,259,830,787,5824,684,691,616,29992,29993,29993,595,1653,1603,1424,1565,1379,1520,1694,1690,1483,1203,861,664,1017,1057,1504,1506,829,917,1033,1037,5600,5034,3009,1247,4583,4652,3417,2054,2093,1489,2059,1520,774,1590,1316,1291,1203,662,1372,1161]} 1. d4 {[%emt 0:00:02]} d5 {[%emt 0:00:01]} 2. c4 {[%emt 0:00:05]} c6 {[%emt 0:00:01]} 3. Nf3 {[%emt 0:00:02]} Nf6 {[%emt 0:00:02]} 4. Nc3 {[%emt 0:00:03]} e6 {[%emt 0:00:01]} 5. e3 {[%emt 0:00:08]} Nbd7 {[%emt 0:00:27]} 6. Qc2 {[%emt 0:00:04]} b6 {[%emt 0:00:23]} 7. Bd3 {[%emt 0:00:32]} Bb7 {[%emt 0:00:21]} 8. O-O {[%emt 0:00:03]} Be7 {[%emt 0:01:03]} 9. b3 {[%emt 0:00:49]} O-O {[%emt 0:00:03]} 10. Bb2 {[%emt 0:00:01]} Rc8 {[%emt 0:00:10]} 11. Qe2 {[%emt 0:00:43] D46: Semi-Slav: 5 e3 Nbd7 6 Bd3, Black avoids the Meran.} dxc4 {[%emt 0:01:10]} 12. bxc4 {[%emt 0:07:01]} c5 {[%emt 0:00:19]} 13. Rad1 {[%emt 0:00:06][%cal Od4d5] White has an edge.} Qc7 {[%emt 0:01:28]} 14. d5 {[%emt 0:00:40]} exd5 {[%emt 0:02:57]} 15. cxd5 {[%emt 0:00:04] [#]} c4 $146 {[%emt 0:00:04]} ({Predecessor:} 15... Nxd5 16. Nxd5 Bxd5 17. Qc2 Qc6 18. Bxh7+ Kh8 19. Qf5 Bf6 20. Qh3 Bxb2 21. Bg6+ {1-0 (20) Ginsburg,J-Everson,D St Paul 1982}) 16. Bb1 {[%emt 0:00:35]} ({White should try} 16. Bf5 $14) 16... a6 $11 {[%emt 0:00:10]} 17. a4 {[%emt 0:01:04] Prevents b5.} Bd6 {[%emt 0:00:39]} (17... g6 $11) 18. h3 {[%emt 0:00:04]} ({White should play} 18. Bf5 $14) 18... Rfe8 {[%emt 0:00:57]} 19. Qc2 {[%emt 0:00:17]} (19. e4 $11) 19... g6 {[%emt 0:00:58]} 20. Ba1 {[%emt 0:03:44]} Bf8 {[%emt 0:00:16]} (20... Qc5 $5 {[%cal Rb6b5]}) 21. Rd4 {[%emt 0:00:38]} Qc5 {[%emt 0:04:11] next ...Bg7 is good for Black.} 22. Ba2 {[%emt 0:03:12]} b5 {[%emt 0:00:01][%cal Rb7d5]} (22... Nxd5 23. Rxc4 Qxc4 24. Bxc4 Rxc4 25. Qd3 $18) 23. Qb2 {[%emt 0:02:04][%cal Oa2c4]} Bg7 {[%emt 0:05:32][%cal Rf6d5]} (23... Bxd5 $2 24. Rxd5 $1 {[%mdl 512]} Qb4 25. Qxb4 (25. axb5 Qxb2 26. Bxb2 Nxd5 $16) 25... Bxb4 26. Rdd1 $18) (23... Nxd5 $2 24. Rxd5 $1 {[%mdl 512]} Bxd5 25. Nxd5 $18) 24. axb5 {[%emt 0:00:02]} Nb6 {[%emt 0:01:30]} (24... Bxd5 $11 {remains equal.} 25. Nxd5 (25. bxa6 Bxf3 26. gxf3 Qh5 $11) 25... Nxd5) 25. bxa6 $16 {[%emt 0:02:15]} Bxd5 {[%emt 0:00:50]} (25... Bxa6 $142 26. Rfd1 Nfd7) 26. Qb5 $2 {[%emt 0:00:51]} (26. Nxd5 $16 Nfxd5 {[#]} 27. Rxd5 $1 {[%mdl 512]} Bxb2 28. Rxc5 Rxc5 29. Bxb2) 26... Bxf3 {[%emt 0:00:59]} (26... Qxb5 $1 $11 27. Nxb5 Rc5) 27. Qxc5 {[%emt 0:00:13]} ({Better is} 27. gxf3 $16 {Threatens to win with Rb1.} Rc6 28. Rfd1) 27... Rxc5 $11 {[%emt 0:00:20]} 28. gxf3 {[%emt 0:00:20]} Ra5 {[%emt 0:00:19]} 29. Bxc4 {[%emt 0:00:38] And now Bb5 would win.} Nxc4 {[%emt 0:00:03][%mdl 64] Remove Defender} 30. Rxc4 {[%emt 0:00:02]} Rxa6 {[%emt 0:00:02]} 31. Ne2 {[%emt 0:00:08]} Ra2 {[%emt 0:00:53]} 32. Re1 {[%emt 0:00:14]} Nd7 {[%emt 0:00:28]} 33. Bxg7 {[%emt 0:00:05]} Kxg7 {[%emt 0:00:01]} 34. f4 {[%emt 0:00:02] Inhibits Ne5.} Rb8 {[%emt 0:00:14]} 35. Nd4 {[%emt 0:02:09]} Rbb2 {[%emt 0:00:18]} 36. Rf1 {[%emt 0:00:04]} ({Don't play} 36. Rc7 Rxf2 37. Rxd7 Rg2+ 38. Kh1 Rh2+ 39. Kg1 Rhg2+ 40. Kh1 Rh2+ 41. Kg1 Rhg2+ $11) 36... Nf6 {[%emt 0:00:10]} 37. Nf3 {[%emt 0:00:02]} Nd5 {[%emt 0:00:29][%cal Od5e3]} 38. Re4 {[%emt 0:00:04]} h6 {[%emt 0:01:00]} 39. Re5 {[%emt 0:00:08]} Nc3 {[%emt 0:00:48]} 40. h4 {[%emt 0:01:18][%cal Bh3h4,Bh4h5][%mdl 32]} Nb1 {[%emt 0:00:54]} (40... Ne2+ $11 41. Kg2 Nc3) 41. h5 $16 {[%emt 0:00:25]} Nd2 {[%emt 0:00:07]} 42. Nxd2 {[%emt 0:00:02]} Rxd2 {[%emt 0:00:02]} 43. hxg6 {[%emt 0:00:02]} Kxg6 {[%emt 0:00:12][%mdl 4096] Endgame KRR-KRR} 44. Kg2 {[%emt 0:00:02]} Kg7 {[%emt 0:00:17]} (44... f5 $16) 45. Kf3 $18 {[%emt 0:00:02]} Rdb2 {[%emt 0:00:24]} 46. Rg1+ {[%emt 0:00:05]} Kf8 {[%emt 0:00:02]} 47. Rg2 {[%emt 0:00:02]} Ra6 {[%emt 0:00:05]} 48. Rc5 {[%emt 0:00:05]} Raa2 $2 {[%emt 0:00:11] A mistake that costs the game.} (48... Rb8 $16 49. Rg1 Rab6) 49. Rc8+ {[%emt 0:00:04]} Ke7 {[%emt 0:00:04]} 50. Rc7+ {[%emt 0:00:08]} Kf8 {[%emt 0:00:10]} 51. Rc6 {[%emt 0:00:03]} h5 {[%emt 0:00:29]} 52. Rc5 {[%emt 0:00:01] Prevents Rb5.} h4 {[%emt 0:00:02]} 53. Rh5 {[%emt 0:00:02]} Ra6 {[%emt 0:00:11]} 54. Rxh4 {[%emt 0:00:02]} Raa2 {[%emt 0:00:08]} 55. Rh7 {[%emt 0:00:16]} Ke7 {[%emt 0:00:10]} 56. Rh6 {[%emt 0:00:35]} Rc2 {[%emt 0:00:08]} 57. Rb6 {[%emt 0:00:02]} Rd2 {[%emt 0:00:09]} 58. Rh2 {[%emt 0:00:07]} Rdc2 {[%emt 0:00:03]} 59. Kg3 {[%emt 0:00:08]} Kf8 $2 {[%emt 0:00:16]} (59... Re2 60. f5 Reb2) 60. f5 {[%emt 0:00:31][%cal Bf4f5,Bf5f6][%mdl 32] White wants to mate with f6.} Rc5 {[%emt 0:00:30]} 61. e4 {[%emt 0:00:18]} (61. f6 $142 Ke8 62. Rb7 Rg5+ 63. Kf3) 61... Rc3+ {[%emt 0:00:44]} 62. Kg4 {[%emt 0:00:12] White threatens f6 and mate.} Re2 {[%emt 0:00:07]} 63. f6 {[%emt 0:00:32][%cal Rh2h8]} Ke8 {[%emt 0:00:13]} 64. Rh8+ {[%emt 0:00:03]} (64. Rd6 $142 Rxe4+ 65. f4 Rxf4+ 66. Kxf4 Rc4+ 67. Ke5 Rc5+ 68. Kd4 Rd5+ 69. Rxd5 Kf8 70. Rh8#) 64... Kd7 {[%emt 0:00:00] White is clearly winning.} 65. f3 {[%emt 0:00:03] Rh7 is the strong threat.} Rg2+ {[%emt 0:00:06]} 66. Kf4 {[%emt 0:00:03] Strongly threatening Rh7.} Rf2 {[%emt 0:00:11]} 67. Rf8 {[%emt 0:00:49]} Rfxf3+ {[%emt 0:00:13]} 68. Ke5 {[%emt 0:00:04]} Kc7 {[%emt 0:00:24]} 69. Ra6 {[%emt 0:00:01]} Kb7 {[%emt 0:00:12]} 70. Ra4 {[%emt 0:00:51]} Rc7 {[%emt 0:00:02]} 71. Rb4+ {[%emt 0:00:03]} Ka7 {[%emt 0:00:06]} 72. Kd6 {[%emt 0:00:24]} Rfc3 {[%emt 0:00:02]} 73. e5 {[%emt 0:00:01]} R3c6+ {[%emt 0:00:12]} 74. Kd5 {[%emt 0:00:02][%cal Of8f7] Hoping for Rxf7!} Ra6 {[%emt 0:00:19]} 75. Re8 {[%emt 0:00:02]} Ra5+ {[%emt 0:00:21]} 76. Ke4 {[%emt 0:00:04]} (76. Kd6 $142 Rc3 77. e6 Ra6+ 78. Ke7 Rxe6+ 79. Kxf7) 76... Rcc5 {[%emt 0:00:02]} 77. Re7+ {[%emt 0:00:03]} Ka6 {[%emt 0:00:01]} 78. Kf4 {[%emt 0:00:04] Black must now prevent Kf5.} Rc1 {[%emt 0:00:03]} 79. Kg5 {[%emt 0:00:30]} Rg1+ {[%emt 0:00:02]} 80. Kf5 {[%emt 0:00:18]} Rf1+ {[%emt 0:00:04]} 81. Rf4 {[%emt 0:00:04]} Re1 {[%emt 0:00:02]} 82. Kg5 {[%emt 0:00:11]} Rg1+ {[%emt 0:00:17]} 83. Rg4 {[%emt 0:00:01]} Re1 {[%emt 0:00:01]} 84. Kh6 {[%emt 0:00:02] Weighted Error Value: White=0.20 (precise) /Black=0.29 (precise)} 1-0

[Event "Chinese League Div-A Rapid 2022"]
[Site "Fuling,Chongqing"]
[Date "2022.09.11"]
[Round "5.1"]
[White "Zhang, Zhong"]
[Black "Xu, Yinglun"]
[Result "1/2-1/2"]
[ECO "C01"]
[WhiteElo "2617"]
[BlackElo "2549"]
[Annotator "TA"]
[PlyCount "50"]
[EventDate "2022.09.07"]
[EventType "team-tourn"]
[EventCountry "CHN"]
[SourceTitle "playchess.com"]
[Source "ChessBase"]
[SourceQuality "1"]
[TimeControl "1500+10"]

{[%evp 10,50,18,12,17,8,11,10,8,8,10,0,14,0,41,-3,0,0,0,0,0,0,0,0,0,-18,-4,-14,-8,-17,-10,-13,0,0,0,-6,-10,-15,-7,-27,-43,-29,-30]} 1. e4 {[%emt 0:00:04]} e6 {[%emt 0:00:01][%cal Be7e6,Be6d5][%mdl 32]} 2. d4 {[%emt 0:00:03]} d5 {[%emt 0:00:02]} 3. exd5 {[%emt 0:00:02]} exd5 {[%emt 0:00:10]} 4. Nf3 {[%emt 0:00:02]} Nf6 {[%emt 0:00:28]} 5. Bd3 {[%emt 0:00:05]} Bd6 {[%emt 0:00:18]} 6. Qe2+ {[%emt 0:00:03]} Be6 $1 {[%emt 0:02:04][%mdl 4] is recently more successful than 6...Qe7. C01: French: Exchange Variation.} 7. c4 {[%emt 0:00:04]} dxc4 {[%emt 0:01:12]} 8. Bxc4 {[%emt 0:00:02]} Qe7 {[%emt 0:00:31] [#] White must now prevent ...Bxc4. The position is equal.} 9. O-O {[%emt 0:00:07]} O-O {[%emt 0:01:36]} 10. Nc3 {[%emt 0:00:02]} Nbd7 {[%emt 0:01:40]} 11. Re1 {[%emt 0:00:31] [#] Hoping for d5.} Rae8 $146 {[%emt 0:01:13] aiming for ...Bxc4.} ({Predecessor:} 11... Bxc4 12. Qxc4 Nb6 13. Qb3 Qd7 14. Bg5 Qf5 15. Nb5 Rfb8 16. Nxd6 cxd6 17. Bxf6 Qxf6 {½-½ (31) Kobo,O (2485)-Fridman,D (2631) Israel 2019}) 12. Bg5 {[%emt 0:00:44]} h6 {[%emt 0:01:20]} 13. Bh4 {[%emt 0:01:48]} Qd8 {[%emt 0:00:44]} 14. Bxe6 {[%emt 0:00:33]} Rxe6 {[%emt 0:00:03]} 15. Qb5 {[%emt 0:00:05]} Rxe1+ $1 {[%emt 0:00:04]} 16. Rxe1 {[%emt 0:00:01]} Qc8 {[%emt 0:00:25]} 17. Bg3 {[%emt 0:03:29]} c6 {[%emt 0:01:50]} 18. Qa5 {[%emt 0:00:13]} Bxg3 {[%emt 0:00:17]} 19. hxg3 {[%emt 0:00:01]} a6 {[%emt 0:00:05]} 20. Qb4 {[%emt 0:01:49]} Re8 {[%emt 0:02:11]} 21. Rxe8+ {[%emt 0:00:12]} Nxe8 {[%emt 0:00:03]} 22. Ne4 {[%emt 0:00:26]} Ndf6 {[%emt 0:02:31]} 23. Nc5 {[%emt 0:02:23]} Nd6 {[%emt 0:00:07]} 24. Nd3 {[%emt 0:05:32]} Qe6 {[%emt 0:01:32]} 25. Nfe5 {[%emt 0:00:19]} Nd5 {[%emt 0:00:42] Weighted Error Value: White=0.08 (flawless) /Black=0.05 (flawless)} 1/2-1/2

[Event "Chinese League Div-A Rapid 2022"]
[Site "Fuling,Chongqing"]
[Date "2022.09.11"]
[Round "5.2"]
[White "Xu, Yi"]
[Black "Xue, Haowen"]
[Result "0-1"]
[ECO "B47"]
[WhiteElo "2507"]
[BlackElo "2128"]
[Annotator "TA"]
[PlyCount "98"]
[EventDate "2022.09.07"]
[EventType "team-tourn"]
[EventCountry "CHN"]
[SourceTitle "playchess.com"]
[Source "ChessBase"]
[SourceQuality "1"]
[TimeControl "1500+10"]

{[%evp 13,98,19,9,10,19,22,15,30,20,34,30,37,13,-9,-8,-7,96,0,48,0,0,-17,14,-70,-42,-48,-19,-27,-7,-72,-58,-62,-56,-88,-65,-115,-103,-120,-112,-259,-233,-279,-268,-262,-264,-262,-256,-342,-295,-321,-316,-279,-232,-294,-302,-297,-290,-280,-262,-443,-456,-549,-543,-584,-584,-584,-548,-841,-841,-817,-762,-29966,-29967,-29967,-29968,-29963,-29965,-29962,-29957,-29949,-5788,-29969,-29969,-29970,-29971,-29968,-29969]} 1. e4 {[%emt 0:00:01]} c5 {[%emt 0:00:01]} 2. Nf3 {[%emt 0:00:01]} Nc6 {[%emt 0:00:02]} 3. d4 {[%emt 0:00:01]} cxd4 {[%emt 0:00:02]} 4. Nxd4 {[%emt 0:00:01]} Qc7 {[%emt 0:00:06]} 5. Nc3 {[%emt 0:00:05]} e6 {[%emt 0:00:01]} 6. Be3 {[%emt 0:00:04]} Nf6 {[%emt 0:00:07]} 7. Ndb5 {[%emt 0:02:36]} Qb8 $1 {[%emt 0:00:03]} 8. f4 {[%emt 0:01:21] e5 is the strong threat. B47: Sicilian: Taimanov: 5 Nc3 Qc7 6 f4, 6 g3 and 6 Be2.} a6 {[%emt 0:00:39]} 9. e5 {[%emt 0:00:29]} axb5 {[%emt 0:00:13]} 10. exf6 {[%emt 0:00:02] The position is equal.} b4 {[%emt 0:01:02]} 11. Nb5 {[%emt 0:00:55]} b6 $1 {[%emt 0:00:20][%cal Bb7b6,Bb6b5][%mdl 32]} 12. fxg7 {[%emt 0:01:58]} Bxg7 {[%emt 0:00:02]} 13. Nd6+ {[%emt 0:00:06]} Ke7 $1 {[%emt 0:01:01]} 14. Nc4 {[%emt 0:00:01]} Ra6 {[%emt 0:01:51]} (14... d5 $11 {keeps the balance.} 15. Nxb6 Ra5) 15. Qd2 {[%emt 0:02:15] [#]} ({White should try} 15. Qh5 $16) 15... d6 $146 {[%emt 0:01:41]} ({Much less strong is} 15... d5 16. Ne5 Nxe5 17. Bd4 $16 (17. fxe5 Qxe5 18. Qxb4+ Kd7 $14) (17. Qxb4+ Kd7 $14) (17. Bxa6 Ng4 $14)) (15... b5 $11 16. Bc5+ Kd8) ({Predecessor:} 15... Rd8 16. Rd1 d6 17. Qf2 b5 18. Nxd6 Rxd6 19. Bc5 Nd8 20. Bxb4 Bd7 21. Rxd6 Rxd6 {0-1 (40) Lobanov,S (2516)-Pogosyan,S (2364) New Delhi 2019}) 16. f5 {[%emt 0:00:55]} (16. Rd1 $1 $14) 16... b5 $1 $11 {[%emt 0:01:49]} 17. Bg5+ $1 {[%emt 0:00:36]} Kd7 $1 {[%emt 0:03:24] [#]} ({But not} 17... f6 18. Bh6 Bf8 19. Bxf8+ Rxf8 20. Ne3 $14) 18. f6 {[%emt 0:00:28]} (18. Qf2 $1 $11 Ke8 19. f6) 18... Bf8 $15 {[%emt 0:00:02]} 19. Ne3 {[%emt 0:00:05]} Qb6 {[%emt 0:03:29]} (19... d5 $5 {[%cal Rb8e5]} 20. g3 (20. Nxd5 Qe5+ 21. Qe3 exd5 $17) 20... Bd6 $15) 20. Be2 {[%emt 0:02:28]} Rg8 $36 {[%emt 0:02:02][%mdl 2048] Black has some pressure.} 21. Bf4 {[%emt 0:00:57] [#]} (21. h4 $11) 21... Qd4 $1 $17 {[%emt 0:01:01]} 22. Qxd4 {[%emt 0:01:48]} Nxd4 {[%emt 0:00:01]} 23. Bd3 {[%emt 0:00:01]} h5 {[%emt 0:02:29]} 24. c3 {[%emt 0:01:08]} (24. h4 $15) 24... bxc3 {[%emt 0:00:08]} 25. bxc3 {[%emt 0:00:02]} Ra3 {[%emt 0:00:28]} 26. Kd2 {[%emt 0:04:42] This move loses the game for White.} (26. Bh7 $17 {was necessary.} Rh8 27. cxd4 Rxh7 28. O-O) 26... e5 $19 {[%emt 0:00:13]} 27. Bg3 {[%emt 0:04:07] [#]} Bh6 $1 {[%emt 0:00:23][%cal Oh5h4] aiming for ...h4!} 28. cxd4 {[%emt 0:01:54]} exd4 {[%emt 0:00:07][%mdl 64] Pin} 29. Bxb5+ {[%emt 0:00:02]} Kd8 {[%emt 0:00:05] Chess con chili.} 30. Kc2 {[%emt 0:00:28]} Bxe3 {[%emt 0:01:37]} 31. Kb2 {[%emt 0:00:01]} Rc3 {[%emt 0:00:02]} 32. Rhe1 {[%emt 0:00:16]} h4 {[%emt 0:02:44]} 33. Bxd6 {[%emt 0:00:15]} Rxg2+ {[%emt 0:00:03]} 34. Re2 {[%emt 0:00:06]} Rxe2+ {[%emt 0:00:26]} 35. Bxe2 {[%emt 0:00:01]} Bf5 {[%emt 0:00:10]} 36. Bb5 $2 {[%emt 0:00:34]} (36. Bd1 Rc6 37. Be7+ Kc7 38. Bb3) 36... Rc2+ {[%emt 0:00:44]} 37. Kb3 {[%emt 0:00:07]} d3 {[%emt 0:00:08]} 38. Be7+ {[%emt 0:00:20]} Kc7 {[%emt 0:00:08]} 39. Bc4 {[%emt 0:00:11]} d2 {[%emt 0:00:11] And now ...Rc1 would win.} 40. Ba3 {[%emt 0:00:10] [#]} Rxc4 $1 {[%emt 0:00:56][%mdl 512]} 41. Kxc4 {[%emt 0:00:02][%mdl 4096] Endgame KRB-KB} Bc2 {[%emt 0:00:01] ( -> ...Bf4). This bishop pair is nice.} 42. Kd5 {[%emt 0:00:12]} Bf4 {[%emt 0:00:24]} 43. h3 {[%emt 0:00:11]} d1=Q+ {[%emt 0:00:04]} 44. Rxd1 {[%emt 0:00:02]} Bxd1 {[%emt 0:00:01]} 45. Ke4 {[%emt 0:00:02]} Bg3 {[%emt 0:00:09]} 46. Bb4 {[%emt 0:00:29]} Kd7 {[%emt 0:00:05]} 47. Kf5 {[%emt 0:00:09]} Bc2+ {[%emt 0:00:16] Black mates.} 48. Kg5 {[%emt 0:00:07]} Ke6 {[%emt 0:00:02]} 49. Bc3 {[%emt 0:00:15]} Bf5 {[%emt 0:00:08] Weighted Error Value: White=0.72/Black=0.08 (flawless)} 0-1

[Event "Chinese League Div-A Rapid 2022"]
[Site "Fuling,Chongqing"]
[Date "2022.09.11"]
[Round "5.3"]
[White "Lou, Yiping"]
[Black "Wen, Yang"]
[Result "1/2-1/2"]
[ECO "E36"]
[WhiteElo "2485"]
[BlackElo "2588"]
[Annotator "TA"]
[PlyCount "37"]
[EventDate "2022.09.07"]
[EventType "team-tourn"]
[EventCountry "CHN"]
[SourceTitle "playchess.com"]
[Source "ChessBase"]
[SourceQuality "1"]
[TimeControl "1500+10"]

{[%evp 15,37,11,0,6,17,24,25,0,0,0,0,0,29,36,29,29,30,30,52,47,52,58,56,0]} 1. d4 {[%emt 0:00:06]} Nf6 {[%emt 0:00:03]} 2. c4 {[%emt 0:00:14]} e6 {[%emt 0:00:08]} 3. Nc3 {[%emt 0:00:07]} Bb4 {[%emt 0:00:06]} 4. Qc2 {[%emt 0:00:06]} d5 {[%emt 0:00:17]} 5. a3 {[%emt 0:00:21]} Bxc3+ {[%emt 0:00:05]} 6. Qxc3 {[%emt 0:00:05]} O-O {[%emt 0:00:05]} 7. Nf3 {[%emt 0:00:20]} dxc4 {[%emt 0:01:16]} 8. Qxc4 {[%emt 0:00:15]} b6 {[%emt 0:00:05]} 9. Bg5 {[%emt 0:00:40] E36: Nimzo-Indian: Classical: 4...d5 5 a3.} Ba6 {[%emt 0:00:34]} 10. Qa4 {[%emt 0:00:44]} Qd7 {[%emt 0:00:23] Recently 10...h6 got a lot of attention.} 11. Qxd7 {[%emt 0:01:25] White has an edge.} Nbxd7 {[%emt 0:00:09]} 12. Bxf6 {[%emt 0:00:06]} gxf6 {[%emt 0:01:47]} 13. e3 {[%emt 0:00:35]} Bxf1 {[%emt 0:00:45]} 14. Rxf1 {[%emt 0:00:16]} c5 {[%emt 0:00:42]} 15. Ke2 {[%emt 0:01:17]} cxd4 {[%emt 0:01:46]} 16. Nxd4 {[%emt 0:00:28]} Rac8 {[%emt 0:00:50]} 17. Rac1 {[%emt 0:02:40] [#] White is slightly better.} Ne5 $146 {[%emt 0:00:15] Inhibits Nc6.} ({Predecessor:} 17... Nc5 18. b4 Ne4 19. Nc6 Rc7 20. f3 Nd6 21. Rfd1 Nf5 22. g4 Ne7 23. Nxe7+ Rxe7 {½-½ (30) Machlik,M (1967)-Lobersli,H (2078) Fagernes 2015}) 18. b3 {[%emt 0:01:34]} f5 {[%emt 0:01:09]} 19. Nf3 {[%emt 0:00:39] Weighted Error Value: White=0.03 (flawless) /Black=0.07 (flawless)} ({White should try} 19. Nb5 $14) 1/2-1/2

[Event "Chinese League Div-A Rapid 2022"]
[Site "Fuling,Chongqing"]
[Date "2022.09.11"]
[Round "5.4"]
[White "Song, Yuxin"]
[Black "Ju, Wenjun"]
[Result "0-1"]
[ECO "C78"]
[WhiteElo "2317"]
[BlackElo "2560"]
[Annotator "TA"]
[PlyCount "108"]
[EventDate "2022.09.07"]
[EventType "team-tourn"]
[EventCountry "CHN"]
[SourceTitle "playchess.com"]
[Source "ChessBase"]
[SourceQuality "1"]
[TimeControl "1500+10"]

{[%evp 22,108,31,43,38,35,41,18,10,21,11,17,39,0,10,10,14,8,10,-78,-72,-90,-79,-95,-72,-79,-62,-61,-77,-220,-203,-212,-228,-215,-213,-262,-256,-368,-375,-375,-357,-498,-489,-483,-420,-493,-323,-445,-445,-427,-415,-511,-511,-511,-511,-511,-405,-405,-398,-397,-391,-397,-395,-395,-380,-483,-428,-895,-871,-870,-830,-836,-781,-748,-739,-5682,-4862,-29970,-29967,-29982,-29983,-29983,-29984,-29986,-29987,-29987,-29988,-29987,-29986]} 1. e4 {[%emt 0:00:01]} e5 {[%emt 0:00:01]} 2. Nf3 {[%emt 0:00:01]} Nc6 {[%emt 0:00:01]} 3. Bb5 {[%emt 0:00:01][%cal Bf1b5,Bb5a4,Ba4b3][%mdl 32]} a6 {[%emt 0:00:01]} 4. Ba4 {[%emt 0:00:01]} Nf6 {[%emt 0:00:02]} 5. O-O {[%emt 0:00:02]} Bc5 {[%emt 0:00:01]} 6. c3 {[%emt 0:00:10]} b5 {[%emt 0:00:02]} 7. Bb3 {[%emt 0:00:11]} d6 {[%emt 0:00:04]} 8. d4 {[%emt 0:00:05]} Bb6 {[%emt 0:00:03]} 9. a4 {[%emt 0:00:01]} Bb7 {[%emt 0:00:02]} 10. Re1 {[%emt 0:00:02]} O-O {[%emt 0:00:03]} 11. Bg5 {[%emt 0:00:03]} h6 {[%emt 0:00:02]} 12. Bh4 {[%emt 0:04:58]} b4 $5 {[%emt 0:00:02][%mdl 4] Leaves trodden paths. C78: Ruy Lopez: Archangelsk and Möller Defences.} 13. Qd3 {[%emt 0:00:31]} Na5 {[%emt 0:01:42] [#]} 14. Nbd2 $146 {[%emt 0:00:44]} ({Predecessor:} 14. Bc2 c5 15. cxb4 cxb4 16. Nbd2 Nc6 17. Nb3 a5 18. Rac1 Ba6 19. Qd2 Rc8 20. Bd3 {0-1 (56) Wagner,D (2581)-Kollars,D (2598) Magdeburg 2021}) 14... bxc3 {[%emt 0:01:05] The position is equal.} 15. bxc3 {[%emt 0:00:05]} Nxb3 {[%emt 0:00:01]} 16. Nxb3 {[%emt 0:00:01]} a5 {[%emt 0:00:01]} 17. Rad1 {[%emt 0:02:57]} Qe7 {[%emt 0:01:49]} 18. c4 {[%emt 0:02:32]} c5 {[%emt 0:01:50]} 19. dxe5 {[%emt 0:03:39]} dxe5 {[%emt 0:00:01]} 20. Qd6 {[%emt 0:00:01]} (20. Nbd2 $11) 20... Qxd6 $17 {[%emt 0:00:07]} 21. Rxd6 {[%emt 0:00:00]} Bc7 {[%emt 0:00:01]} 22. Rdd1 {[%emt 0:00:01]} Nxe4 {[%emt 0:00:56] Threatens to win with ...Bc6.} 23. Rd7 {[%emt 0:00:17]} Rac8 {[%emt 0:00:12]} 24. Nxe5 $1 {[%emt 0:01:37]} Rfe8 {[%emt 0:04:28]} 25. Nd3 {[%emt 0:00:52] This costs White the game.} (25. f4 $17) 25... Bc6 $19 {[%emt 0:02:07][%csl LRa4,LRd7]} 26. Re7 {[%emt 0:00:03]} g5 {[%emt 0:00:04]} 27. Rxe8+ {[%emt 0:00:19]} Rxe8 {[%emt 0:00:02]} 28. f3 {[%emt 0:02:25]} Bxa4 {[%emt 0:03:02]} (28... gxh4 29. fxe4 Bxa4 30. Nbxc5 $17) 29. Rxe4 {[%emt 0:04:58]} (29. fxe4 {keeps fighting.} Bxb3 30. Nxc5) 29... Rxe4 {[%emt 0:00:32]} ({Worse is} 29... gxh4 30. Rg4+ Kh7 31. Nbxc5 $17) 30. fxe4 {[%emt 0:00:01][%cal Ob3c5]} Bxb3 {[%emt 0:00:02][%cal Ba4b3,Bb3c4,Bc4b5,Bb5c6,Bc6d5][%mdl 32] A strong pair of Bishops.} ({Wrong is} 30... gxh4 $2 31. Ndxc5 Bb6 32. Kf1 $19) 31. Nxc5 {[%emt 0:00:09]} Bxc4 {[%emt 0:00:45][%mdl 4096] Endgame KBB-KBN} ({Not} 31... gxh4 32. Nxb3 a4 33. Nc1 $17) 32. Be1 {[%emt 0:00:21]} Bb5 {[%emt 0:00:35] Prevents Nd7.} 33. Bc3 {[%emt 0:00:11]} a4 {[%emt 0:00:13][%cal Ba5a4,Ba4a3][%mdl 32] Hoping for ...a3.} 34. Kf2 {[%emt 0:00:41]} a3 {[%emt 0:00:54]} 35. Nb3 {[%emt 0:00:11]} Bc6 {[%emt 0:01:10]} 36. e5 {[%emt 0:01:50]} Bd5 {[%emt 0:00:35]} 37. Na1 {[%emt 0:00:51]} Bb6+ {[%emt 0:00:27]} 38. Kf1 {[%emt 0:00:01]} Be3 {[%emt 0:00:51] ...Bc1 is the strong threat.} 39. g3 {[%emt 0:00:01]} Kh7 {[%emt 0:01:43]} 40. Nc2 {[%emt 0:00:29]} Bc1 {[%emt 0:00:46]} 41. Bb4 {[%emt 0:00:01]} a2 {[%emt 0:00:16] [#] White must now prevent ...Bb2.} 42. Bc3 {[%emt 0:00:00] Against Bb2} Kg6 {[%emt 0:00:29]} 43. Nd4 {[%emt 0:00:01]} Be3 {[%emt 0:01:25] aiming for ...Bc4+.} 44. g4 {[%emt 0:00:29]} (44. h3 $142) 44... Bf4 {[%emt 0:00:14]} 45. Nf5 {[%emt 0:00:00]} Be6 {[%emt 0:00:19]} 46. Ne7+ {[%emt 0:00:06]} Kh7 {[%emt 0:00:01]} 47. h3 {[%emt 0:00:36]} h5 {[%emt 0:00:01]} 48. Nf5 {[%emt 0:00:19]} f6 {[%emt 0:01:37] [#] ( -> ...Bxf5)} 49. exf6 {[%emt 0:00:06]} Bxf5 {[%emt 0:00:01] Black mates.} 50. gxf5 {[%emt 0:00:07] KB-KB} Kg8 {[%emt 0:00:02]} 51. Ke2 {[%emt 0:00:20]} Kf7 {[%emt 0:00:12]} 52. Kf3 {[%emt 0:00:05]} Bc7 {[%emt 0:00:05]} 53. Ke4 {[%emt 0:00:13]} Bd8 {[%emt 0:00:02]} 54. Kd3 {[%emt 0:00:10]} Bxf6 {[%emt 0:00:01] Weighted Error Value: White=0.60/Black=0.11 (very precise)} 0-1